bitfinex/quotes_SOLUSD_20250912
["timestamp","ask_amount","ask_price","bid_price","bid_amount"]
[1757684450990,0.06,238.14,238.13,273.93553269]
[1757684451232,0.06,238.14,238.13,273.51559401]
[1757684451594,0.06,238.14,238.13,262.59369273]
[1757684451894,0.06,238.14,238.13,260.91559401]
[1757684452532,0.06,238.14,238.13,260.23559401]
[1757684453426,0.06,238.14,238.13,260.91559401]
[1757684454798,18.87066325,238.11,237.96,0.68]
[1757684454998,0.67,238.1,238.01,34.46]
[1757684455293,0.67,238.09,238.05,26.0]
[1757684455600,18.87066325,238.11,238.07,13.59559401]
[1757684455601,0.67,238.11,238.07,13.59559401]
[1757684455798,0.67,238.11,238.06,60.54]
[1757684455799,0.73,238.14,238.09,13.59559401]
[1757684455996,0.67,238.13,238.12,39.59559401]
[1757684456215,0.67,238.13,238.12,74.13559401]
[1757684457327,0.06,238.14,238.12,74.13559401]
[1757684457829,0.06,238.14,238.13,48.13559401]
[1757684458825,0.06,238.14,238.13,48.11559401]
[1757684459214,0.06,238.14,238.13,13.59559401]
[1757684459416,0.06,238.14,238.13,48.11559401]
[1757684459925,0.73,238.14,238.13,34.48]
[1757684460422,0.06,238.14,238.13,48.76559401]
[1757684460604,0.06,238.14,238.13,95.16559401]
[1757684460810,0.06,238.14,238.13,94.49559401]
[1757684461010,0.06,238.14,238.13,129.07559401]
[1757684461209,0.06,238.14,238.13,94.49559401]
[1757684461413,0.73,238.14,238.13,129.07559401]
[1757684462023,0.06,238.14,238.08,80.9]
[1757684462224,0.67,238.13,238.08,80.9]
[1757684462427,18.87066325,238.11,238.09,34.6]
[1757684462613,0.67,238.1,238.07,30.2]
[1757684462925,0.67,238.09,238.08,34.6]
[1757684463221,19.54066325,238.09,238.07,30.2]
[1757684463425,18.87066325,238.11,238.08,34.6]
[1757684463725,18.87066325,238.13,238.08,34.6]
[1757684463912,0.67,238.12,238.08,34.6]
[1757684464114,0.67,238.11,238.07,30.2]
[1757684464315,18.87066325,238.1,238.08,34.58]
[1757684464519,0.67,238.09,238.07,30.2]
[1757684464820,0.67,238.09,238.08,34.58]
[1757684465127,18.87066325,238.1,238.08,34.58]
[1757684465426,18.87066325,238.1,238.07,30.2]
[1757684465631,0.67,238.09,238.08,34.58]
[1757684466023,18.87066325,238.08,238.0,0.03]
[1757684466227,18.87066325,238.04,238.0,0.03]
[1757684466727,18.87066325,238.01,238.0,0.03]
[1757684466933,18.87066325,238.01,238.0,34.61]
[1757684467237,19.54066325,238.01,238.0,0.03]
[1757684467416,19.54066325,238.01,238.0,34.61]
[1757684468012,0.67,238.03,238.0,34.59]
[1757684468329,0.67,238.02,238.0,34.59]
[1757684468632,0.67,238.02,238.0,0.03]
[1757684468823,0.67,238.02,238.01,34.54]
[1757684469217,19.54066325,238.07,238.01,34.54]
[1757684469535,19.54066325,238.07,238.05,0.03]
[1757684469843,18.87066325,238.07,238.06,34.52]
[1757684470021,18.87066325,238.09,238.06,34.52]
[1757684470621,19.54066325,238.09,238.06,34.52]
[1757684471142,18.87066325,238.12,238.06,34.52]
[1757684471320,18.87066325,238.12,238.06,115.42]
[1757684471516,0.67,238.13,238.07,13.59559401]
[1757684472209,18.93066325,238.14,238.05,0.7]
[1757684472210,0.67,238.12,238.08,60.5]
[1757684472414,0.67,238.11,238.08,60.5]
[1757684472612,0.67,238.1,238.05,0.03]
[1757684472833,18.87066325,238.09,238.06,34.5]
[1757684473139,18.87066325,238.09,238.05,0.03]
[1757684473140,0.67,238.08,238.05,0.03]
[1757684473435,0.67,238.08,238.07,34.5]
[1757684474517,18.87066325,238.09,238.07,34.5]
[1757684474834,18.87066325,238.09,238.08,34.48]
[1757684475533,19.54066325,238.09,238.05,0.03]
[1757684475833,18.87066325,238.09,238.06,34.46]
[1757684476035,18.87066325,238.11,238.06,34.46]
[1757684476236,18.87066325,238.13,238.07,35.11]
[1757684476424,18.93066325,238.14,238.08,13.59559401]
[1757684476821,0.67,238.13,238.1,26.0]
[1757684477029,18.93066325,238.14,238.11,34.46]
[1757684477230,19.60066325,238.14,238.11,34.46]
[1757684477428,18.93066325,238.14,238.12,34.48]
[1757684477630,0.67,238.13,238.12,34.48]
[1757684477830,18.87066325,238.12,238.07,80.9]
[1757684478030,0.06,238.14,238.11,26.0]
[1757684478233,0.06,238.14,238.12,34.5]
[1757684478426,0.06,238.14,238.07,80.9]
[1757684478636,18.87066325,238.13,238.08,48.09559401]
[1757684478948,18.87066325,238.13,238.08,48.76559401]
[1757684479116,18.87066325,238.08,238.0,13.62559401]
[1757684479320,19.54066325,238.08,238.06,34.52]
[1757684479540,18.87066325,238.1,238.06,34.52]
[1757684480117,18.87066325,238.08,238.07,34.5]
[1757684480532,18.87066325,238.1,238.03,14.29559401]
[1757684480737,18.87066325,238.06,238.03,0.03]
[1757684481039,18.87066325,238.06,238.05,34.55]
[1757684481538,18.87066325,238.06,238.05,34.57]
[1757684481539,19.54066325,238.06,238.05,34.57]
[1757684481725,18.87066325,238.06,238.05,34.57]
[1757684481929,18.87066325,238.06,238.05,0.03]
[1757684482245,18.87066325,238.06,238.05,34.57]
[1757684483040,19.54066325,238.06,238.05,0.03]
[1757684483257,26.06556525,238.06,238.05,0.03]
[1757684483417,26.06556525,238.06,238.05,34.57]
[1757684483622,26.06556525,238.06,238.05,0.03]
[1757684483837,26.06556525,238.06,238.05,34.57]
[1757684484044,30.26618694,238.06,238.05,0.03]
[1757684487448,19.54066325,238.06,238.05,0.03]
[1757684487649,23.74128494,238.06,238.05,0.03]
[1757684487835,19.54066325,238.06,238.05,0.03]
[1757684488731,19.58066325,238.06,238.05,0.03]
[1757684489321,18.87066325,238.06,238.05,0.03]
[1757684489854,23.78128494,238.06,238.05,0.03]
[1757684490028,18.87066325,238.04,238.03,0.03]
[1757684490223,25.39556525,238.04,238.03,0.03]
[1757684490448,26.10556525,238.04,238.03,0.03]
[1757684491038,30.30653987,238.04,238.03,0.03]
[1757684492232,23.78163787,238.04,238.03,0.03]
[1757684492430,30.30653987,238.04,238.03,0.03]
[1757684492849,23.78163787,238.04,238.03,0.03]
[1757684493154,30.30653987,238.04,238.03,0.03]
[1757684494658,26.10556525,238.04,238.03,0.03]
[1757684494838,18.87066325,238.04,238.03,0.03]
[1757684495149,19.58066325,238.04,238.03,0.03]
[1757684495358,18.87066325,238.04,238.03,0.03]
[1757684496556,19.58066325,238.04,238.03,0.03]
[1757684499270,18.87066325,238.04,238.03,0.71]
[1757684500557,18.87066325,238.04,238.03,0.03]
[1757684501653,19.58066325,238.04,238.03,0.03]
[1757684502364,18.87066325,238.04,238.03,0.03]
[1757684507738,18.87066325,238.04,238.03,0.71]
[1757684507943,0.06,238.05,238.03,0.71]
[1757684508170,18.87066325,238.04,238.03,0.03]
[1757684508650,18.87066325,238.04,238.03,0.71]
[1757684509352,0.06,238.05,238.03,0.71]
[1757684509544,0.06,238.05,238.03,0.03]
[1757684509851,0.06,238.05,238.04,0.68]
[1757684510450,0.06,238.05,238.03,0.03]
[1757684510763,0.06,238.05,238.04,0.68]
[1757684512346,0.06,238.05,238.04,14.27559401]
[1757684513171,0.06,238.05,238.04,48.57559401]
[1757684516083,0.06,238.05,238.04,129.47559401]
[1757684516275,0.06,238.05,238.04,132.85691068]
[1757684516457,0.06,238.05,238.04,129.47559401]
[1757684517473,0.06,238.08,238.04,48.57559401]
[1757684517683,0.06,238.08,238.07,39.59559401]
[1757684517864,0.06,238.08,238.07,120.91563853]
[1757684518059,0.06,238.08,238.07,121.18559401]
[1757684519083,0.06,238.08,238.07,155.42559401]
[1757684520083,0.06,238.08,238.07,155.38559401]
[1757684520593,0.06,238.08,238.07,155.36559401]
[1757684521365,0.06,238.13,238.12,13.59559401]
[1757684521582,0.06,238.13,238.12,47.77559401]
[1757684521776,0.06,238.13,238.12,14.28559401]
[1757684521973,0.06,238.13,238.12,73.77559401]
[1757684522173,0.06,238.13,238.12,74.46559401]
[1757684523192,0.06,238.13,238.12,48.44559401]
[1757684523375,0.06,238.13,238.12,129.34559401]
[1757684523772,0.06,238.13,238.12,159.54559401]
[1757684525991,0.06,238.13,238.12,172.12559401]
[1757684526585,0.06,238.17,238.15,39.59559401]
[1757684526791,0.06,238.17,238.15,74.13549743]
[1757684526970,0.06,238.17,238.15,87.40549743]
[1757684527172,0.06,238.17,238.15,86.98559401]
[1757684527482,0.06,238.17,238.15,299.28559401]
[1757684528390,0.06,238.17,238.15,299.24559401]
[1757684528787,0.06,238.17,238.15,265.16559401]
[1757684528979,0.06,238.17,238.15,299.22559401]
[1757684529692,0.06,238.18,238.16,26.17559401]
[1757684529994,0.69,238.28,238.25,13.59559401]
[1757684530192,0.69,238.28,238.27,13.59559401]
[1757684530369,0.2,238.29,238.27,13.59559401]
[1757684530575,0.2,238.29,238.28,47.63559401]
[1757684532874,0.2,238.29,238.28,129.42526834]
[1757684533075,0.2,238.29,238.28,94.27559401]
[1757684533377,0.2,238.29,238.28,128.29559401]
[1757684533577,0.1,238.32,238.31,39.59559401]
[1757684534198,0.1,238.32,238.31,73.61559401]
[1757684534598,0.1,238.32,238.31,73.65559401]
[1757684534799,0.1,238.32,238.31,39.59559401]
[1757684535004,0.79,238.32,238.31,39.59559401]
[1757684535183,0.79,238.32,238.31,47.65559401]
[1757684536186,0.79,238.32,238.31,13.59559401]
[1757684536398,0.79,238.32,238.31,47.63559401]
[1757684536798,0.79,238.32,238.31,47.61559401]
[1757684537892,0.79,238.32,238.31,13.59559401]
[1757684538087,0.79,238.32,238.31,47.61559401]
[1757684538709,0.79,238.32,238.31,13.59559401]
[1757684538885,0.79,238.32,238.31,47.59559401]
[1757684540202,0.79,238.32,238.31,13.59559401]
[1757684540402,0.79,238.32,238.31,47.55559401]
[1757684541110,0.79,238.32,238.31,128.23559401]
[1757684541504,0.79,238.32,238.31,94.27559401]
[1757684541803,18.87066325,238.31,238.24,106.68]
[1757684542007,0.69,238.3,238.25,47.53559401]
[1757684542198,18.87066325,238.31,238.25,47.53559401]
[1757684542515,0.69,238.3,238.25,47.53559401]
[1757684542715,18.87066325,238.31,238.25,47.53559401]
[1757684542916,0.69,238.29,238.25,47.53559401]
[1757684543090,0.69,238.29,238.25,13.59559401]
[1757684543286,0.69,238.28,238.25,13.59559401]
[1757684543605,18.87066325,238.31,238.24,80.68]
[1757684543788,18.87066325,238.31,238.29,0.03]
[1757684543996,18.87066325,238.31,238.3,33.92]
[1757684544190,19.56066325,238.31,238.3,33.92]
[1757684549910,19.56066325,238.31,238.29,0.03]
[1757684550104,0.66,238.3,238.29,0.03]
[1757684550720,10.56374644,238.3,238.29,33.95]
[1757684551020,0.66,238.3,238.29,33.95]
[1757684551194,10.56374644,238.3,238.29,33.95]
[1757684551397,0.66,238.3,238.29,33.95]
[1757684553521,0.66,238.3,238.29,0.03]
[1757684553719,0.66,238.3,238.29,33.95]
[1757684555404,8.87993892,238.3,238.29,33.95]
[1757684555612,4.8563911,238.3,238.29,33.95]
[1757684555794,4.68354782,238.3,238.29,33.95]
[1757684556619,0.66,238.3,238.29,33.95]
[1757684557818,4.68354782,238.3,238.29,33.95]
[1757684558497,8.87993892,238.3,238.29,33.95]
[1757684558711,0.66,238.3,238.29,33.95]
[1757684560003,4.68354782,238.3,238.29,33.95]
[1757684560908,4.68354782,238.3,238.29,0.03]
[1757684561097,4.68354782,238.3,238.29,33.95]
[1757684561917,4.68354782,238.3,238.29,0.03]
[1757684562103,4.68354782,238.3,238.29,33.95]
[1757684562503,4.74354782,238.3,238.29,33.95]
[1757684562921,4.74354782,238.3,238.29,0.03]
[1757684563102,4.74354782,238.3,238.29,33.95]
[1757684563429,4.74354782,238.3,238.29,0.03]
[1757684563727,4.74354782,238.3,238.29,33.95]
[1757684565321,8.93993892,238.3,238.29,33.95]
[1757684565522,8.93993892,238.3,238.29,0.03]
[1757684570848,12.96348674,238.3,238.29,0.03]
[1757684571036,48.89421107,238.27,238.26,0.03]
[1757684571414,49.55421107,238.27,238.26,0.03]
[1757684571614,49.55421107,238.27,238.24,0.03]
[1757684571942,18.87066325,238.13,238.12,30.91]
[1757684572115,18.87066325,238.13,238.12,64.81]
[1757684572318,18.87066325,238.13,238.11,0.1]
[1757684572545,4.02354782,238.12,238.11,0.1]
[1757684573643,4.68354782,238.12,238.11,0.1]
[1757684574240,4.02354782,238.12,238.11,0.1]
[1757684574419,4.68354782,238.12,238.11,0.1]
[1757684577142,18.87066325,238.13,238.11,0.1]
[1757684577336,18.87066325,238.13,238.12,47.49559401]
[1757684577549,18.87066325,238.13,238.12,48.19559401]
[1757684580065,18.87066325,238.16,238.12,128.87559401]
[1757684580239,18.87066325,238.18,238.14,13.59559401]
[1757684580432,18.87066325,238.16,238.15,14.29559401]
[1757684580852,18.87066325,238.18,238.15,14.29559401]
[1757684581060,18.87066325,238.18,238.17,13.59559401]
[1757684581371,18.87066325,238.2,238.17,48.19559401]
[1757684581568,18.87066325,238.2,238.18,0.7]
[1757684582071,18.87066325,238.2,238.17,47.49559401]
[1757684582261,18.87066325,238.2,238.17,14.29559401]
[1757684582462,18.87066325,238.2,238.18,34.6]
[1757684582965,18.87066325,238.2,238.18,33.9]
[1757684583269,18.87066325,238.2,238.19,14.29559401]
[1757684583439,18.87066325,238.2,238.19,13.59559401]
[1757684583842,18.87066325,238.2,238.19,14.29559401]
[1757684584347,18.87066325,238.2,238.19,13.59559401]
[1757684584546,18.87066325,238.2,238.19,14.29559401]
[1757684585757,18.87066325,238.2,238.19,47.49559401]
[1757684586149,18.87066325,238.17,238.15,13.59559401]
[1757684586353,18.87066325,238.17,238.16,33.9]
[1757684586555,18.87066325,238.15,238.14,13.59559401]
[1757684586863,18.87066325,238.15,238.14,74.19559401]
[1757684587950,18.87066325,238.17,238.14,74.19559401]
[1757684588164,18.87066325,238.17,238.16,13.59559401]
[1757684588662,18.87066325,238.17,238.16,14.29559401]
[1757684588866,18.87066325,238.17,238.16,47.49559401]
[1757684589957,18.87066325,238.17,238.16,48.19559401]
[1757684592967,18.87066325,238.19,238.16,48.19559401]
[1757684596362,18.87066325,238.19,238.16,128.87559401]
[1757684597573,18.87066325,238.19,238.16,94.27559401]
[1757684597881,18.87066325,238.19,238.18,13.59559401]
[1757684598084,18.87066325,238.19,238.18,94.27559401]
[1757684598765,18.87066325,238.19,238.16,0.03]
[1757684598766,18.87066325,238.17,238.16,94.30559401]
[1757684599076,19.55066325,238.17,238.16,128.18559401]
[1757684599377,18.87066325,238.17,238.16,128.18559401]
[1757684602064,19.55066325,238.17,238.16,128.18559401]
[1757684602267,18.87066325,238.17,238.16,128.18559401]
[1757684602977,19.55066325,238.17,238.16,0.03]
[1757684603281,22.12819978,238.17,238.16,33.89]
[1757684604191,22.12819978,238.17,238.16,0.03]
[1757684605478,26.32688139,238.17,238.16,0.03]
[1757684606983,26.32688139,238.17,238.13,0.03]
[1757684606984,18.87066325,238.14,238.13,0.03]
[1757684607278,21.44819978,238.14,238.13,0.03]
[1757684607582,22.16819978,238.14,238.13,0.03]
[1757684607972,23.07022649,238.12,238.11,0.1]
[1757684608172,18.87066325,238.12,238.11,0.1]
[1757684608476,22.16819978,238.12,238.11,0.1]
[1757684608790,19.59066325,238.12,238.11,0.1]
[1757684609283,18.87066325,238.12,238.11,33.96]
[1757684610666,18.87066325,238.12,238.11,47.55559401]
[1757684610983,18.87066325,238.15,238.12,13.59559401]
[1757684611173,18.87066325,238.15,238.14,13.59559401]
[1757684611677,18.87066325,238.13,238.12,14.29559401]
[1757684613856,18.87066325,238.18,238.14,26.0]
[1757684614073,18.87066325,238.2,238.16,13.59559401]
[1757684614282,18.87066325,238.18,238.17,14.29559401]
[1757684614494,18.87066325,238.18,238.17,47.45559401]
[1757684614685,18.87066325,238.21,238.17,47.45559401]
[1757684614872,18.87066325,238.18,238.17,47.45559401]
[1757684615196,18.87066325,238.18,238.17,48.15559401]
[1757684615369,18.87066325,238.18,238.17,47.45559401]
[1757684616076,18.87066325,238.18,238.17,13.59559401]
[1757684616273,18.87066325,238.18,238.17,47.45559401]
[1757684616472,18.87066325,238.18,238.13,0.7]
[1757684616671,0.72,238.17,238.11,13.69559401]
[1757684616881,18.87066325,238.14,238.11,13.69559401]
[1757684617091,18.87066325,238.14,238.11,0.1]
[1757684617277,18.87066325,238.12,238.11,0.1]
[1757684617468,18.87066325,238.12,238.11,33.94]
[1757684617667,18.87066325,238.12,238.11,0.1]
[1757684617873,18.87066325,238.12,238.11,33.94]
[1757684618180,18.87066325,238.12,238.11,33.97]
[1757684618887,18.87066325,238.12,238.11,34.67]
[1757684619092,18.87066325,238.12,238.11,33.97]
[1757684619881,18.87066325,238.12,238.11,0.13]
[1757684620089,18.87066325,238.12,238.11,33.97]
[1757684620289,18.87066325,238.12,238.11,0.13]
[1757684620490,22.16819978,238.12,238.11,0.13]
[1757684620782,22.16819978,238.12,238.11,33.97]
[1757684621877,22.16819978,238.12,238.11,0.13]
[1757684622076,22.16819978,238.12,238.11,33.97]
[1757684622287,19.59066325,238.12,238.11,33.97]
[1757684622490,22.16819978,238.12,238.11,0.13]
[1757684622793,22.16819978,238.12,238.11,33.97]
[1757684623002,22.16819978,238.12,238.11,0.13]
[1757684623208,22.16819978,238.12,238.11,33.97]
[1757684623404,22.16819978,238.12,238.11,0.13]
[1757684624308,26.36776302,238.12,238.11,0.13]
[1757684624477,26.36776302,238.12,238.05,0.2]
[1757684624478,36.86667113,238.12,238.05,0.2]
[1757684624800,21.44819978,238.06,238.05,30.62]
[1757684624984,22.16819978,238.06,238.05,0.2]
[1757684625576,26.36882147,238.06,238.05,0.2]
[1757684625779,22.16819978,238.06,238.05,0.2]
[1757684625996,26.36882147,238.06,238.05,0.2]
[1757684626801,22.16819978,238.06,238.05,0.2]
[1757684629002,26.36882147,238.06,238.05,0.2]
[1757684629510,22.16819978,238.06,238.05,0.2]
[1757684629806,26.36882147,238.06,238.05,0.2]
[1757684630206,22.16819978,238.06,238.05,0.2]
[1757684630412,26.36882147,238.06,238.05,0.2]
[1757684630815,22.16819978,238.06,238.05,0.2]
[1757684630991,26.36882147,238.06,238.05,0.2]
[1757684634790,22.16819978,238.06,238.05,0.2]
[1757684635213,19.59066325,238.06,238.05,0.2]
[1757684635400,18.87066325,238.06,238.05,0.2]
[1757684635588,21.44819978,238.06,238.05,0.2]
[1757684635797,18.87066325,238.06,238.05,0.2]
[1757684636508,18.87066325,238.06,238.05,0.87]
[1757684636709,18.87066325,238.06,238.05,0.2]
[1757684637305,18.87066325,238.06,238.05,0.87]
[1757684638219,18.87066325,238.06,238.05,0.2]
[1757684638616,18.87066325,238.06,238.05,0.87]
[1757684638917,19.54066325,238.06,238.05,34.02]
[1757684639117,22.11819978,238.06,238.05,34.02]
[1757684639924,21.44819978,238.06,238.05,34.02]
[1757684640719,18.87066325,238.06,238.05,34.02]
[1757684642035,21.44819978,238.06,238.05,34.02]
[1757684642928,18.87066325,238.06,238.05,34.02]
[1757684643421,18.87066325,238.06,238.05,34.69]
[1757684645021,18.87066325,238.06,238.05,34.67]
[1757684645522,18.87066325,238.06,238.05,0.87]
[1757684645707,18.87066325,238.06,238.05,0.2]
[1757684645903,18.87066325,238.06,238.05,34.0]
[1757684646328,18.87066325,238.06,238.05,34.67]
[1757684646711,21.44819978,238.06,238.05,34.0]
[1757684647215,18.87066325,238.06,238.05,34.67]
[1757684647926,18.87066325,238.09,238.08,39.59559401]
[1757684648224,18.87066325,238.09,238.08,26.67]
[1757684649124,18.87066325,238.09,238.08,60.47]
[1757684650521,18.93066325,238.11,238.08,60.47]
[1757684650724,18.93066325,238.11,238.09,0.67]
[1757684650903,18.93066325,238.11,238.1,0.67]
[1757684651310,18.93066325,238.11,238.1,14.26559401]
[1757684651518,0.06,238.11,238.1,14.26559401]
[1757684654141,0.06,238.11,238.1,94.94559401]
[1757684654322,0.06,238.11,238.1,14.26559401]
[1757684654645,0.06,238.11,238.1,95.36558561]
[1757684654846,0.06,238.11,238.1,128.72559401]
[1757684655426,0.06,238.11,238.1,141.30559401]
[1757684655640,0.06,238.11,238.1,144.63101582]
[1757684656146,0.06,238.11,238.1,128.72559401]
[1757684657048,0.06,238.14,238.13,39.59559401]
[1757684657228,0.06,238.14,238.13,73.37559401]
[1757684657546,0.06,238.14,238.13,74.04559401]
[1757684658623,0.06,238.14,238.13,40.26559401]
[1757684658824,0.06,238.14,238.13,86.61291857]
[1757684660250,0.06,238.24,238.21,13.59559401]
[1757684660551,0.06,238.24,238.23,13.59559401]
[1757684663348,0.06,238.24,238.23,14.26559401]
[1757684664552,0.06,238.24,238.23,94.88559401]
[1757684666050,0.06,238.24,238.23,96.56320007]
[1757684666432,0.06,238.24,238.23,130.30320007]
[1757684666846,0.06,238.24,238.23,142.88320007]
[1757684668251,0.16,238.29,238.28,94.09559401]
[1757684668423,0.16,238.29,238.28,127.81559401]
[1757684668625,0.16,238.29,238.28,128.51559401]
[1757684668843,0.16,238.29,238.28,127.81559401]
[1757684669149,0.16,238.29,238.28,129.49305936]
[1757684669352,0.16,238.29,238.28,130.19305936]
[1757684670849,0.16,238.29,238.28,142.77305936]
[1757684672056,0.16,238.29,238.28,142.75305936]
[1757684672431,0.16,238.29,238.28,109.05305936]
[1757684672636,0.16,238.29,238.28,130.17305936]
[1757684672840,0.16,238.29,238.28,95.77305936]
[1757684673449,0.06,238.33,238.32,93.77559401]
[1757684673635,0.71,238.33,238.32,93.77559401]
[1757684674036,19.58066325,238.33,238.32,127.47559401]
[1757684675153,19.58066325,238.33,238.32,93.77559401]
[1757684675553,19.58066325,238.33,238.32,127.47559401]
[1757684675744,19.58066325,238.33,238.32,93.77559401]
[1757684676060,18.87066325,238.31,238.29,13.59559401]
[1757684676254,22.90006211,238.31,238.3,33.7]
[1757684676951,23.55006211,238.31,238.3,33.7]
[1757684677934,23.55006211,238.31,238.29,13.59559401]
[1757684678146,18.87066325,238.31,238.3,33.68]
[1757684678343,18.87066325,238.28,238.25,13.59559401]
[1757684678550,18.87066325,238.28,238.27,13.59559401]
[1757684678749,18.87066325,238.28,238.27,47.27559401]
[1757684679147,23.55006211,238.28,238.27,33.68]
[1757684679467,19.52066325,238.28,238.27,33.68]
[1757684681453,18.87066325,238.28,238.27,47.27559401]
[1757684681656,19.52066325,238.28,238.27,47.27559401]
[1757684682454,18.87066325,238.28,238.27,47.27559401]
[1757684682645,18.87066325,238.31,238.28,13.59559401]
[1757684682844,18.87066325,238.31,238.29,33.68]
[1757684683051,19.52066325,238.31,238.3,33.68]
[1757684683566,18.87066325,238.28,238.19,80.18]
[1757684683741,18.87066325,238.25,238.2,33.68]
[1757684683940,19.52066325,238.25,238.21,13.59559401]
[1757684684156,0.65,238.24,238.23,13.59559401]
[1757684684471,0.65,238.24,238.23,47.27559401]
[1757684684647,18.87066325,238.22,238.18,13.59559401]
[1757684684842,0.65,238.21,238.18,13.59559401]
[1757684685066,18.87066325,238.22,238.2,13.59559401]
[1757684685261,18.87066325,238.22,238.21,47.27559401]
[1757684687665,18.87066325,238.24,238.23,26.0]
[1757684687859,18.87066325,238.24,238.23,59.66]
[1757684688047,19.52066325,238.24,238.22,26.0]
[1757684688244,18.87066325,238.24,238.23,47.25559401]
[1757684688773,19.52066325,238.24,238.23,47.25559401]
[1757684689163,18.87066325,238.27,238.23,47.25559401]
[1757684689364,18.87066325,238.3,238.27,39.59559401]
[1757684689548,18.87066325,238.3,238.29,13.59559401]
[1757684690973,18.87066325,238.3,238.29,47.25559401]
[1757684690974,19.52066325,238.3,238.29,47.25559401]
[1757684691551,19.52066325,238.3,238.29,33.66]
[1757684692353,19.52066325,238.3,238.28,26.0]
[1757684692547,4.02939886,238.32,238.25,26.0]
[1757684692548,18.87066325,238.26,238.25,26.0]
[1757684692854,19.52066325,238.26,238.25,59.66]
[1757684693056,19.52066325,238.26,238.23,13.59559401]
[1757684693057,18.87066325,238.24,238.23,13.59559401]
[1757684693270,18.87066325,238.24,238.23,47.25559401]
[1757684695565,18.87066325,238.24,238.23,13.59559401]
[1757684695763,19.57066325,238.24,238.23,47.23559401]
[1757684695978,18.87066325,238.24,238.23,47.23559401]
[1757684697065,18.87066325,238.24,238.23,127.41559401]
[1757684699867,19.57066325,238.24,238.23,127.41559401]
[1757684700076,18.87066325,238.24,238.23,127.41559401]
[1757684700782,19.57066325,238.24,238.23,113.82]
[1757684701088,18.87066325,238.24,238.23,113.82]
[1757684702681,19.57066325,238.24,238.23,113.82]
[1757684703062,19.57066325,238.24,238.23,113.8]
[1757684706005,19.57066325,238.24,238.23,80.18]
[1757684706207,19.57066325,238.24,238.23,113.8]
[1757684707893,19.57066325,238.24,238.23,80.18]
[1757684708106,19.57066325,238.24,238.23,113.8]
[1757684708503,18.87066325,238.24,238.23,33.62]
[1757684709014,18.87066325,238.27,238.26,39.59559401]
[1757684709214,18.87066325,238.29,238.27,13.59559401]
[1757684709422,18.87066325,238.29,238.28,33.62]
[1757684709619,18.87066325,238.29,238.27,26.0]
[1757684709822,18.87066325,238.29,238.28,33.62]
[1757684710021,19.57066325,238.29,238.24,80.18]
[1757684710224,0.7,238.28,238.27,39.59559401]
[1757684710432,18.87066325,238.29,238.27,59.62]
[1757684711333,18.87066325,238.29,238.28,33.62]
[1757684711535,18.87066325,238.29,238.27,26.0]
[1757684711743,18.87066325,238.29,238.28,33.6]
[1757684712234,18.87066325,238.29,238.27,26.0]
[1757684712402,18.87066325,238.29,238.28,33.6]
[1757684712806,18.87066325,238.29,238.28,47.85559401]
[1757684713231,18.87066325,238.32,238.31,39.59559401]
[1757684713515,18.87066325,238.32,238.31,73.19559401]
[1757684714429,18.87066325,238.32,238.31,73.61521551]
[1757684714755,0.06,238.33,238.31,73.61521551]
[1757684714958,0.06,238.33,238.32,14.25559401]
[1757684715122,0.06,238.33,238.32,13.59559401]
[1757684715321,0.06,238.33,238.32,47.19559401]
[1757684715750,0.06,238.33,238.32,13.59559401]
[1757684716073,0.76,238.33,238.32,33.6]
[1757684716252,0.06,238.33,238.32,47.19559401]
[1757684716636,0.06,238.33,238.32,33.6]
[1757684716836,0.06,238.33,238.32,26.0]